bitfinex-derivatives/quotes_SOLF0:USTF0_20250117
["timestamp","ask_amount","ask_price","bid_price","bid_amount"]
[1737144378969,4.6066,216.92,216.86,4.6075]
[1737144379271,7.16925825,216.93,216.86,11.77675825]
[1737144379767,4.6071,216.9,216.84,11.77735825]
[1737144380170,4.6071,216.9,216.83,65.33680536]
[1737144380361,4.6071,216.9,216.85,11.77715825]
[1737144381466,7.16925825,216.91,216.85,7.16925825]
[1737144381766,4.607,216.9,216.85,7.16925825]
[1737144383171,4.607,216.9,216.85,11.77715825]
[1737144386069,4.607,216.9,216.85,4.6079]
[1737144386364,7.16925825,216.87,216.8,5.49168792]
[1737144386566,7.16925825,216.85,216.8,5.49168792]
[1737144386965,7.16925825,216.83,216.8,5.49168792]
[1737144387372,4.6084,216.83,216.8,5.49168792]
[1737144387669,7.16925825,216.85,216.8,5.49168792]
[1737144388670,4.6083,216.84,216.8,5.49168792]
[1737144389874,4.6084,216.83,216.8,5.49168792]
[1737144391166,4.6082,216.84,216.8,5.49168792]
[1737144391371,1.5946,216.89,216.81,7.16925825]
[1737144391571,4.6074,216.88,216.83,11.77745825]
[1737144391771,7.16925825,216.88,216.83,4.6082]
[1737144393078,4.6076,216.87,216.83,4.6082]
[1737144395278,7.16925825,216.88,216.81,7.16925825]
[1737144395481,4.6078,216.86,216.82,4.6086]
[1737144397178,11.77705825,216.86,216.82,4.6086]
[1737144397781,4.6078,216.86,216.82,4.6086]
[1737144400977,7.16925825,216.91,216.86,4.6076]
[1737144401383,4.6069,216.9,216.86,4.6076]
[1737144403284,1.4972,216.95,216.85,7.16925825]
[1737144403486,13.27245825,216.95,216.89,7.16925825]
[1737144403685,7.16925825,216.99,216.91,7.16925825]
[1737144403885,4.6052,216.98,216.91,7.16925825]
[1737144404685,4.6052,216.98,216.93,7.16925825]
[1737144404989,1.4999,217.02,216.94,4.606]
[1737144404990,4.605,216.99,216.94,4.606]
[1737144405487,4.605,216.99,216.84,18.61]
[1737144405488,4.6044,217.02,216.97,4.6052]
[1737144405680,7.16925825,217.03,216.97,7.16925825]
[1737144405983,7.16925825,217.03,216.95,7.16925825]
[1737144406181,1.524,217.06,216.84,4.78]
[1737144406385,7.16925825,216.97,216.84,4.78]
[1737144406587,7.16925825,216.98,216.91,7.16925825]
[1737144407184,4.6056,216.96,216.91,7.16925825]
[1737144407588,11.77485825,216.96,216.9,4.6067]
[1737144407988,4.6056,216.96,216.91,7.16925825]
[1737144408185,4.6056,216.96,216.91,11.77595825]
[1737144408389,4.6054,216.97,216.91,11.77595825]
[1737144408891,4.6054,216.97,216.91,4.6067]
[1737144411089,4.6057,216.96,216.91,4.6067]
[1737144417108,4.6059,216.95,216.91,4.6067]
[1737144417599,4.6052,216.99,216.88,4.6073]
[1737144417803,11.21067946,217.02,216.89,11.21067946]
[1737144418902,4.605,216.99,216.94,4.606]
[1737144419203,1.4885,217.04,216.92,11.21067946]
[1737144421106,4.6049,217.0,216.95,4.6057]
[1737144421304,1.4885,217.04,216.92,11.21067946]
[1737144421603,1.4885,217.04,216.9,7.8032]
[1737144421802,4.6048,217.0,216.94,4.6059]
[1737144422305,1.4885,217.04,216.94,4.6059]
[1737144422501,4.6051,216.99,216.94,4.6059]
[1737144422805,1.4885,217.04,216.95,4.6058]
[1737144423007,4.6048,217.01,216.95,4.6058]
[1737144423205,1.4885,217.04,216.92,11.21067946]
[1737144423407,11.21067946,217.11,217.0,4.6048]
[1737144423608,4.6035,217.06,216.98,11.21067946]
[1737144423909,11.21067946,217.11,216.98,11.21067946]
[1737144424210,11.21067946,217.08,216.95,11.21067946]
[1737144424403,11.21067946,217.08,216.9,9.3165]
[1737144424404,11.21067946,217.11,216.98,11.21067946]
[1737144426304,4.6031,217.09,217.03,4.604]
[1737144426510,11.21067946,217.11,217.03,4.604]
[1737144427311,4.8214,217.13,216.99,6.3761]
[1737144427506,4.6031,217.09,217.0,1.5089]
[1737144427706,4.6031,217.09,217.01,11.21067946]
[1737144428003,4.6027,217.1,217.06,4.6034]
[1737144428203,1.6098,217.13,217.01,11.21067946]
[1737144428411,11.21067946,217.17,217.04,11.21067946]
[1737144428607,11.21067946,217.17,217.07,4.6031]
[1737144428608,4.6018,217.14,217.07,4.6031]
[1737144428801,4.6018,217.14,217.04,11.21067946]
[1737144429310,4.6018,217.15,217.04,11.21067946]
[1737144429503,11.7649317,217.15,217.08,7.1631317]
[1737144429707,7.1631317,217.15,217.06,7.1631317]
[1737144429911,4.6022,217.12,217.06,11.7664317]
[1737144430610,11.7651317,217.14,217.07,4.6031]
[1737144431513,11.7651317,217.14,217.08,11.7660317]
[1737144431908,4.602,217.14,217.08,11.7660317]
[1737144432213,7.1631317,217.14,217.06,7.1631317]
[1737144433014,11.7651317,217.14,217.08,4.6031]
[1737144433513,11.7651317,217.14,217.06,7.1631317]
[1737144433713,11.7651317,217.14,217.09,4.6028]
[1737144434310,4.6014,217.17,217.12,4.6022]
[1737144435315,4.6014,217.17,217.1,7.1631317]
[1737144435615,4.6014,217.17,217.13,4.602]
[1737144436115,4.6014,217.16,217.12,4.6022]
[1737144436517,11.7645317,217.16,217.12,4.6022]
[1737144436917,11.7645317,217.16,217.09,7.1631317]
[1737144437118,4.602,217.14,217.09,7.1631317]
[1737144437715,4.602,217.14,217.09,11.7659317]
[1737144438918,4.6022,217.13,217.09,7.1631317]
[1737144439520,4.6019,217.14,217.09,11.7659317]
[1737144440418,4.6019,217.14,217.09,4.6028]
[1737144440618,4.6019,217.14,217.09,11.7659317]
[1737144442819,7.1631317,217.19,217.11,7.1631317]
[1737144443118,7.1631317,217.19,217.0,3.0297]
[1737144443119,7.1631317,217.19,217.13,7.1631317]
[1737144443618,4.601,217.18,217.13,7.1631317]
[1737144444013,10.2392317,217.21,217.13,7.1631317]
[1737144444211,8.7513317,217.21,217.13,7.1631317]
[1737144444418,13.3518317,217.21,217.15,4.6015]
[1737144444621,1.5882,217.21,217.15,7.1631317]
[1737144445013,7.1631317,217.18,217.1,7.1631317]
[1737144446212,4.6013,217.17,217.12,4.602]
[1737144447124,4.6013,217.17,217.12,11.7651317]
[1737144448416,1.5882,217.21,217.12,7.1631317]
[1737144448618,7.1631317,217.2,217.14,7.1631317]
[1737144448823,7.1631317,217.27,217.18,7.1631317]
[1737144449118,4.5988,217.29,217.24,4.5996]
[1737144449523,2.9996,217.38,217.26,7.1631317]
[1737144449719,7.1631317,217.34,217.26,7.1631317]
[1737144449920,7.1631317,217.36,217.28,7.1631317]
[1737144450225,4.5976,217.34,217.3,7.1631317]
[1737144450623,11.7595317,217.4,217.33,4.5976]
[1737144450825,1.5006,217.41,217.34,7.1631317]
[1737144451025,7.1631317,217.42,217.34,7.1631317]
[1737144452216,4.5964,217.4,217.34,11.7606317]
[1737144452825,4.5964,217.4,217.34,7.1631317]
[1737144453224,7.1631317,217.38,217.28,1.6137]
[1737144453424,7.1631317,217.38,217.3,7.1631317]
[1737144453620,11.17126175,217.39,217.28,1.6137]
[1737144453823,4.5974,217.35,217.29,4.5986]
[1737144454427,4.5974,217.35,217.28,6.2126]
[1737144454829,11.17126175,217.39,217.28,1.6137]
[1737144455029,11.17126175,217.39,217.27,1.4651]
[1737144455727,4.5981,217.32,217.27,1.4651]
[1737144456025,11.17126175,217.36,217.26,4.78]
[1737144456226,11.17126175,217.36,217.21,1.6068]
[1737144456425,11.17126175,217.36,217.22,4.78]
[1737144456729,11.17126175,217.33,217.22,4.78]
[1737144457224,4.5985,217.3,217.22,4.78]
[1737144457630,11.17126175,217.36,217.23,11.17126175]
[1737144458025,11.17126175,217.36,217.24,1.4987]
[1737144460228,4.5984,217.3,217.26,4.5991]
[1737144460432,4.5984,217.3,217.24,1.4987]
[1737144460732,11.17126175,217.36,217.24,1.4987]
[1737144460935,4.5984,217.31,217.24,1.4987]
[1737144461134,11.17126175,217.36,217.24,1.4987]
[1737144461433,4.5984,217.31,217.25,4.5994]
[1737144463530,11.17126175,217.36,217.24,6.0984]
[1737144463735,11.17126175,217.36,217.24,1.4987]
[1737144464435,4.5984,217.31,217.25,4.5995]
[1737144464638,11.17126175,217.36,217.25,4.5995]
[1737144465133,4.5986,217.3,217.25,4.5995]
[1737144465936,4.5987,217.29,217.25,4.5995]
[1737144466137,11.17126175,217.36,217.25,4.5995]
[1737144466439,4.5984,217.3,217.25,4.5995]
[1737144470140,11.17126175,217.36,217.24,1.4987]
[1737144470339,4.5986,217.3,217.25,4.5994]
[1737144471140,4.5986,217.3,217.26,4.5992]
[1737144472340,4.5989,217.28,217.24,6.0984]
[1737144472745,4.5989,217.28,217.22,4.78]
[1737144472940,11.17126175,217.33,217.21,1.6068]
[1737144472941,4.5992,217.27,217.21,1.6068]
[1737144473142,11.17126175,217.33,217.21,6.3868]
[1737144474243,4.5989,217.28,217.23,4.5997]
[1737144474845,4.5989,217.28,217.24,4.5997]
[1737144475144,4.5988,217.29,217.24,4.5997]
[1737144475445,4.5988,217.29,217.25,7.15258885]
[1737144475643,4.5988,217.29,217.25,11.75198885]
[1737144475843,4.5988,217.29,217.27,7.15258885]
[1737144476244,7.15258885,217.33,217.27,7.15258885]
[1737144477348,4.5982,217.31,217.26,4.5993]
[1737144479850,4.5985,217.3,217.26,4.5993]
[1737144480151,4.5985,217.3,217.26,11.75188885]
[1737144480947,4.5967,217.39,217.33,4.5976]
[1737144481149,7.15258885,217.41,217.33,7.15258885]
[1737144481549,4.5961,217.41,217.36,4.5972]
[1737144482052,1.522,217.42,217.36,4.5972]
[1737144482348,4.5963,217.4,217.36,4.5972]
[1737144482553,4.5963,217.4,217.35,11.74988885]
[1737144483443,4.5963,217.4,217.35,4.5973]
[1737144483645,4.5967,217.39,217.34,4.5974]
[1737144485249,1.522,217.42,217.31,15.94595736]
[1737144486550,4.5969,217.38,217.33,4.5976]
[1737144493353,4.5969,217.38,217.34,4.5976]
[1737144494052,1.522,217.42,217.31,15.94595736]
[1737144494249,4.5961,217.41,217.31,15.94595736]
[1737144494757,4.5961,217.41,217.36,4.5971]
[1737144495958,6.118,217.42,217.37,4.5968]
[1737144496460,1.5273,217.47,217.38,4.5965]
[1737144496756,4.5957,217.43,217.34,11.16595736]
[1737144497156,4.5957,217.43,217.38,4.5966]
[1737144497853,11.16595736,217.45,217.32,7.8187]
[1737144498153,11.16595736,217.45,217.32,18.98465736]
[1737144498355,1.5667,217.44,217.32,18.98465736]
[1737144498856,4.5965,217.4,217.36,4.5972]
[1737144500463,4.5965,217.4,217.32,18.98465736]
[1737144500661,4.5961,217.41,217.37,4.5969]
[1737144502853,4.5964,217.4,217.37,4.5969]
[1737144503458,4.5962,217.41,217.32,18.98465736]
[1737144503662,4.5962,217.41,217.38,4.5967]
[1737144504164,4.5961,217.42,217.38,4.5967]
[1737144504663,4.5961,217.41,217.38,4.5967]
[1737144505654,4.5961,217.41,217.38,11.7411151]
[1737144505863,1.5667,217.44,217.38,7.1444151]
[1737144506363,1.5667,217.44,217.4,7.1444151]
[1737144506565,6.1622,217.44,217.4,11.7405151]
[1737144506859,1.5273,217.47,217.42,7.1444151]
[1737144507462,7.1444151,217.49,217.42,7.1444151]
[1737144507463,11.7390151,217.49,217.43,4.5956]
[1737144507661,7.1444151,217.49,217.43,4.5956]
[1737144508066,1.5779,217.51,217.46,7.1444151]
[1737144508865,4.5944,217.5,217.46,11.7394151]
[1737144509166,1.5779,217.51,217.46,11.7394151]
[1737144509660,1.5779,217.51,217.46,7.1444151]
[1737144509865,6.1721,217.51,217.47,4.5948]
[1737144511765,4.5938,217.53,217.49,4.5944]
[1737144512070,7.1444151,217.57,217.5,7.1444151]
[1737144512466,7.1444151,217.57,217.51,4.5939]
[1737144512970,7.1444151,217.57,217.5,7.1444151]
[1737144513171,4.5934,217.54,217.5,11.7386151]
[1737144514671,4.5932,217.55,217.52,7.1444151]
[1737144515271,4.593,217.56,217.52,11.7381151]
[1737144517179,4.5932,217.55,217.52,11.7381151]
[1737144518578,3.1346,217.58,217.52,7.1444151]
[1737144518773,3.1346,217.58,217.53,4.5935]
[1737144518774,4.593,217.56,217.53,4.5935]
[1737144519978,7.1444151,217.57,217.53,4.5935]
[1737144520178,11.7373151,217.57,217.54,4.5933]
[1737144520678,4.5929,217.57,217.54,4.5933]
[1737144525679,7.1444151,217.59,217.54,4.5933]
[1737144525882,7.1444151,217.57,217.42,18.4803]
[1737144526079,1.5228,217.63,217.42,18.4803]
[1737144526080,7.1444151,217.58,217.51,7.1444151]
[1737144526581,3.018,217.66,217.53,7.1444151]
[1737144526780,7.1444151,217.61,217.53,7.1444151]
[1737144526974,7.1444151,217.59,217.52,7.1444151]
[1737144527177,7.1444151,217.55,217.5,4.78]
[1737144527371,7.1444151,217.55,217.48,7.1444151]
[1737144527575,7.1444151,217.53,217.46,7.1444151]
[1737144527774,4.594,217.51,217.46,11.7392151]
[1737144528879,4.594,217.51,217.46,4.5948]
[1737144529085,7.1444151,217.53,217.46,7.1444151]
[1737144529377,7.1444151,217.51,217.44,7.1444151]
[1737144530185,4.5944,217.49,217.45,4.5952]
[1737144530581,4.5944,217.49,217.44,7.1444151]
[1737144531786,7.1444151,217.51,217.44,7.1444151]
[1737144532085,4.5948,217.48,217.44,7.1444151]
[1737144532286,7.1444151,217.51,217.44,7.1444151]
[1737144532585,4.5949,217.47,217.44,7.1444151]
[1737144533185,7.1444151,217.49,217.4,9.73022636]
[1737144533387,4.5959,217.42,217.4,12.09464146]
[1737144533684,7.1444151,217.49,217.4,12.09464146]
[1737144534083,7.1444151,217.47,217.4,4.95022636]
[1737144534387,7.1444151,217.45,217.4,4.95022636]
[1737144535084,4.5961,217.41,217.4,4.95022636]
[1737144535888,7.1444151,217.45,217.38,7.1444151]
[1737144535889,4.5965,217.39,217.38,7.1444151]
[1737144536580,4.597,217.37,217.28,13.8]
[1737144536886,4.597,217.37,217.35,7.1444151]
[1737144537878,7.1444151,217.43,217.35,7.1444151]
[1737144538187,4.5972,217.36,217.35,7.1444151]
[1737144538782,7.1444151,217.43,217.35,7.1444151]
[1737144538983,4.597,217.37,217.35,7.1444151]
[1737144539180,7.1444151,217.43,217.29,3.0855]
[1737144539488,4.5976,217.35,217.32,7.1444151]
[1737144541385,7.1444151,217.43,217.34,7.1444151]
[1737144541593,9.1894,217.48,217.36,7.1444151]
[1737144541788,7.1444151,217.44,217.38,7.1444151]
[1737144541991,4.5965,217.4,217.38,7.1444151]
[1737144542189,7.1444151,217.46,217.38,7.1444151]
[1737144542489,7.1444151,217.44,217.38,7.1444151]
[1737144544088,7.1444151,217.44,217.32,4.78]
[1737144544294,7.1444151,217.42,217.36,7.1444151]
[1737144544594,4.5967,217.39,217.36,7.1444151]
[1737144545491,4.5967,217.39,217.38,7.1444151]
[1737144545697,4.5964,217.4,217.38,7.1444151]
[1737144545891,7.1444151,217.44,217.38,7.1444151]
[1737144546498,4.5965,217.4,217.38,7.1444151]
[1737144547297,4.5965,217.39,217.38,7.1444151]
[1737144547499,4.5965,217.39,217.34,4.5976]
[1737144547500,4.5965,217.39,217.36,7.1444151]
[1737144548000,7.1444151,217.44,217.36,7.1444151]
[1737144549301,4.5967,217.39,217.36,7.1444151]
[1737144549802,7.1444151,217.44,217.36,7.1444151]
[1737144550202,7.1444151,217.42,217.36,7.1444151]
[1737144550404,4.5966,217.39,217.36,7.1444151]
[1737144551003,4.5966,217.39,217.38,7.1444151]
[1737144551204,7.1444151,217.46,217.38,7.1444151]
[1737144552003,7.1444151,217.46,217.4,7.1444151]
[1737144552199,7.1444151,217.48,217.4,7.1444151]
[1737144552400,4.5962,217.43,217.4,11.7412151]
[1737144553006,7.1444151,217.44,217.36,7.1444151]
[1737144554007,4.597,217.4,217.36,11.7419151]
[1737144554408,7.1444151,217.44,217.36,11.7419151]
[1737144554798,3.0891,217.49,217.35,7.1444151]
[1737144554799,7.1444151,217.42,217.35,7.1444151]
[1737144555706,4.5971,217.39,217.35,11.7422151]
[1737144558705,7.1444151,217.43,217.35,11.7422151]
[1737144558905,4.5972,217.38,217.35,11.7422151]
[1737144559207,4.5972,217.38,217.35,7.1444151]
[1737144560604,4.5972,217.38,217.37,7.1444151]
[1737144560909,4.5972,217.38,217.35,7.1444151]
[1737144564605,4.5963,217.43,217.38,4.5972]
[1737144564810,4.5963,217.43,217.33,13.8]
[1737144564811,7.1444151,217.48,217.41,7.1444151]
[1737144565007,3.0891,217.49,217.44,7.1444151]
[1737144565207,4.5954,217.47,217.44,7.1444151]
[1737144569518,1.5573,217.55,217.46,7.1444151]
[1737144569719,7.1444151,217.52,217.46,7.1444151]
[1737144570417,4.5949,217.49,217.46,7.1444151]
[1737144571216,3.0458,217.55,217.48,7.1444151]
[1737144571418,8.6329151,217.55,217.48,7.1444151]
[1737144571917,4.5943,217.52,217.48,11.7395151]
[1737144572917,4.5945,217.51,217.48,11.7395151]
[1737144573715,4.5945,217.51,217.48,7.1444151]
[1737144576219,4.5943,217.52,217.48,7.1444151]
[1737144577624,7.1444151,217.54,217.48,7.1444151]
[1737144578316,4.5944,217.52,217.48,7.1444151]
[1737144578926,4.5944,217.52,217.48,11.7393151]
[1737144580724,4.5953,217.48,217.43,4.5959]
[1737144580924,4.5953,217.48,217.41,7.1444151]
[1737144580925,7.1444151,217.48,217.41,7.1444151]
[1737144581330,4.5955,217.46,217.41,11.7409151]
[1737144584435,4.5955,217.46,217.43,7.1444151]
[1737144589237,4.5953,217.48,217.43,11.7404151]
[1737144589436,8.7129151,217.51,217.43,11.7404151]
[1737144589639,8.7129151,217.51,217.43,7.1444151]
[1737144590233,4.5955,217.47,217.44,4.5959]
[1737144590839,4.5955,217.46,217.43,11.7405151]
[1737144591132,7.1444151,217.49,217.39,4.78]
[1737144591337,7.1444151,217.49,217.41,7.1444151]
[1737144592139,1.5685,217.51,217.38,4.5971]
[1737144592140,7.1444151,217.47,217.38,4.5971]
[1737144592338,7.1444151,217.47,217.39,7.1444151]
[1737144593141,7.1444151,217.45,217.38,7.1444151]
[1737144593439,7.1444151,217.45,217.36,6.2368]
[1737144593440,7.1444151,217.43,217.35,7.1444151]
[1737144594939,4.5972,217.38,217.35,7.1444151]
[1737144595646,7.1444151,217.43,217.3,4.78]
[1737144595647,4.5978,217.36,217.34,7.1444151]
[1737144595944,7.1444151,217.41,217.34,7.1444151]
[1737144596941,4.5972,217.39,217.36,7.1444151]
[1737144598137,1.5579,217.42,217.36,7.1444151]
[1737144598339,7.1444151,217.45,217.38,7.1444151]
[1737144599139,7.1444151,217.45,217.38,11.7416151]
[1737144599738,4.5964,217.43,217.4,7.1444151]
[1737144599939,1.6115,217.49,217.4,7.1444151]
[1737144600240,4.5958,217.45,217.4,7.1444151]
[1737144600435,4.5958,217.45,217.41,4.5966]
[1737144600836,4.596,217.44,217.4,11.7412151]
[1737144601039,7.1444151,217.47,217.4,7.1444151]
[1737144601237,8.7559151,217.49,217.42,7.1444151]
[1737144601439,3.1388,217.5,217.44,7.1444151]
[1737144601440,4.5952,217.48,217.44,7.1444151]
[1737144601844,3.1388,217.5,217.44,7.1444151]
[1737144602044,4.5951,217.49,217.45,4.5957]
[1737144602843,1.5801,217.55,217.48,7.1444151]
[1737144603651,4.5941,217.53,217.49,4.5949]
[1737144604149,4.5939,217.54,217.5,11.7391151]
[1737144604547,9.1825,217.67,217.52,7.1444151]
[1737144604844,7.1444151,217.59,217.53,4.5941]
[1737144605044,1.5131,217.63,217.53,4.5941]
[1737144605250,7.1444151,217.59,217.53,4.5941]
[1737144605950,7.1444151,217.57,217.5,7.1444151]
[1737144607049,4.5935,217.56,217.51,4.5945]
[1737144607348,4.5935,217.56,217.5,7.1444151]
[1737144607752,4.5933,217.57,217.52,7.1444151]
[1737144608046,7.1444151,217.57,217.48,4.78]
[1737144608250,4.5939,217.55,217.51,4.5945]
[1737144608649,7.1444151,217.57,217.5,7.1444151]
[1737144608849,4.5937,217.55,217.51,4.5945]
[1737144609349,7.1444151,217.57,217.48,11.9244151]
[1737144609552,4.5942,217.53,217.48,16.5195151]
[1737144609854,4.5942,217.53,217.48,11.9244151]
[1737144610354,4.5938,217.55,217.5,7.1444151]
[1737144610557,7.1444151,217.58,217.5,7.1444151]
[1737144610854,7.1444151,217.58,217.48,4.78]
[1737144610855,4.5933,217.57,217.52,7.1444151]
[1737144611054,1.5131,217.63,217.52,7.1444151]
[1737144611055,7.1444151,217.6,217.52,7.1444151]
[1737144611250,4.5937,217.55,217.5,4.5947]
[1737144611557,7.1444151,217.58,217.51,7.1444151]
[1737144611748,4.5931,217.58,217.53,7.1444151]
[1737144613159,7.1444151,217.59,217.51,7.1444151]
[1737144614159,7.1444151,217.59,217.51,11.7387151]
[1737144614160,4.5933,217.57,217.51,11.7387151]
[1737144614348,4.5933,217.57,217.51,7.1444151]
[1737144615153,7.1444151,217.57,217.4,65.78668434]
[1737144615354,7.1444151,217.55,217.47,7.1444151]
[1737144615558,7.1444151,217.53,217.4,65.78668434]
[1737144615857,4.5948,217.51,217.46,7.1444151]
[1737144616262,4.5946,217.51,217.46,7.1444151]
[1737144616562,7.1444151,217.53,217.46,7.1444151]
[1737144616759,1.5131,217.63,217.46,7.1444151]
[1737144617063,4.5947,217.51,217.46,11.7400151]
[1737144617362,7.1444151,217.53,217.46,11.7400151]
[1737144617663,4.5946,217.51,217.46,11.7400151]
[1737144618165,4.5948,217.5,217.46,11.7400151]
[1737144618557,4.5948,217.5,217.46,7.1444151]
[1737144619663,4.5954,217.47,217.44,7.1444151]
[1737144619858,4.5954,217.47,217.4,65.78668434]
[1737144619859,7.1444151,217.51,217.43,7.1444151]
[1737144620064,7.1444151,217.53,217.46,7.1444151]
[1737144620260,7.1444151,217.55,217.46,7.1444151]
[1737144620758,4.5945,217.52,217.46,7.1444151]
[1737144620964,7.1444151,217.55,217.48,7.1444151]
[1737144621763,4.5945,217.52,217.48,11.7395151]
[1737144622458,4.5945,217.52,217.48,4.5951]
[1737144622758,4.5945,217.52,217.47,7.1444151]
[1737144622966,4.5945,217.52,217.47,11.7398151]
[1737144623161,4.5945,217.52,217.47,7.1444151]
[1737144623963,4.5945,217.52,217.41,4.78]
[1737144624264,1.5131,217.63,217.51,7.1444151]
[1737144624466,1.5131,217.63,217.56,7.1444151]
[1737144624657,4.5926,217.61,217.58,7.1444151]
[1737144624862,4.5926,217.61,217.56,7.1444151]
[1737144625163,1.5131,217.63,217.56,7.1444151]
[1737144625468,6.1053,217.63,217.58,7.1444151]
[1737144625855,6.1053,217.63,217.58,11.7375151]
[1737144626063,10.1396151,217.66,217.58,11.7375151]
[1737144626257,1.4581,217.75,217.6,7.1444151]
[1737144626465,7.1444151,217.66,217.6,7.1444151]
[1737144626767,4.5917,217.65,217.6,7.1444151]
[1737144626963,4.6212,217.75,217.64,7.1444151]
[1737144627260,4.5899,217.74,217.7,7.1444151]
[1737144627456,7.1444151,217.78,217.7,7.1444151]
[1737144627861,4.5895,217.75,217.7,7.1444151]
[1737144628768,7.1444151,217.76,217.7,7.1444151]
[1737144629063,4.5898,217.74,217.7,7.1444151]
[1737144629463,11.13198292,217.82,217.69,5.1]
[1737144629766,11.13198292,217.79,217.69,5.1]
[1737144630166,11.13198292,217.82,217.69,5.1]
[1737144630565,11.13198292,217.79,217.69,5.1]
[1737144631268,4.5898,217.74,217.69,5.1]
[1737144631766,11.13198292,217.79,217.69,5.1]
[1737144631968,4.5905,217.71,217.69,5.1]
[1737144632561,4.5905,217.71,217.64,11.13198292]
[1737144632562,11.13198292,217.76,217.64,11.13198292]
[1737144632759,4.591,217.68,217.64,11.13198292]
[1737144634070,1.4604,217.75,217.64,11.13198292]
[1737144635368,4.5916,217.67,217.64,11.13198292]
[1737144635572,4.5916,217.67,217.62,5.12]
[1737144635773,4.6261,217.75,217.61,11.13198292]
[1737144635974,4.5922,217.64,217.59,5.14]
[1737144636969,4.5926,217.62,217.58,11.13198292]
[1737144637172,4.5926,217.62,217.55,26.38427978]
[1737144637872,4.6261,217.75,217.55,26.38427978]
[1737144637873,11.13198292,217.67,217.55,5.51839686]
[1737144638082,1.5345,217.66,217.55,5.51839686]
[1737144638275,3.0144,217.66,217.55,5.51839686]
[1737144638475,4.5931,217.6,217.55,5.51839686]
[1737144638675,3.0144,217.66,217.55,5.51839686]
[1737144638876,4.5929,217.61,217.55,5.51839686]
[1737144639066,4.6157,217.66,217.55,16.65037978]
[1737144639378,4.6157,217.66,217.56,4.5939]
[1737144639379,4.5926,217.62,217.56,4.5939]
[1737144639677,4.5926,217.62,217.55,16.65037978]
[1737144640176,4.6157,217.66,217.55,16.65037978]
[1737144641175,4.5929,217.61,217.55,16.65037978]
[1737144641376,4.6157,217.66,217.56,4.5938]
[1737144641768,4.5924,217.63,217.56,4.5938]
[1737144642975,4.5926,217.62,217.56,4.5938]
[1737144643374,4.6157,217.66,217.55,16.65037978]
[1737144643574,4.5931,217.6,217.55,16.65037978]
[1737144644070,4.5905,217.72,217.58,11.13198292]
[1737144644281,11.13198292,217.75,217.61,11.13198292]
[1737144644577,4.592,217.65,217.61,11.13198292]
[1737144645374,11.13198292,217.76,217.61,11.13198292]
[1737144646280,11.13198292,217.73,217.61,11.13198292]
[1737144646481,4.5926,217.63,217.58,11.13198292]
[1737144646774,11.13198292,217.7,217.58,11.13198292]
[1737144646981,1.4944,217.69,217.58,11.13198292]
[1737144647171,4.5922,217.64,217.59,4.5932]
[1737144647782,4.5924,217.63,217.59,4.5932]
[1737144647980,4.5924,217.63,217.58,15.72538292]
[1737144648672,1.4944,217.69,217.58,11.13198292]
[1737144648879,4.5921,217.65,217.6,4.593]
[1737144649182,1.4944,217.69,217.58,11.13198292]
[1737144649379,4.5926,217.62,217.58,11.13198292]
[1737144649973,1.4944,217.69,217.58,11.13198292]
[1737144650282,4.5928,217.61,217.58,11.13198292]
[1737144650984,4.5931,217.6,217.55,16.65037978]
[1737144651282,4.577,217.69,217.55,16.65037978]
[1737144651486,4.592,217.65,217.55,21.24437978]
[1737144651677,4.577,217.69,217.55,16.65037978]
[1737144652780,4.5928,217.62,217.57,4.5936]
[1737144653582,4.5928,217.62,217.55,16.65037978]
[1737144653583,4.5928,217.61,217.55,21.24427978]
[1737144654981,4.5931,217.6,217.55,16.65037978]
[1737144655285,11.13198292,217.67,217.55,16.65037978]
[1737144655885,4.5931,217.6,217.55,21.24437978]
[1737144657181,11.13198292,217.67,217.57,4.5935]
[1737144657380,11.13198292,217.67,217.55,16.65037978]
[1737144657381,4.577,217.69,217.58,11.13198292]
[1737144658382,4.5922,217.64,217.59,4.5931]
[1737144659291,11.13198292,217.67,217.56,1.5083]
[1737144659489,11.13198292,217.67,217.55,5.51839686]
[1737144659788,4.5934,217.59,217.55,5.51839686]
[1737144661089,4.5931,217.6,217.56,4.5939]
[1737144661290,4.5931,217.6,217.55,5.51839686]